bitfinex-derivatives/quotes_SOLF0:USTF0_20250613
["timestamp","ask_amount","ask_price","bid_price","bid_amount"]
[1749798440769,4.6679,144.32,144.24,5.04016761]
[1749798440972,4.6679,144.32,144.28,5.04016761]
[1749798441467,4.6679,144.32,144.29,6.9262]
[1749798441664,11.5932,144.32,144.28,5.04016761]
[1749798441858,11.6447959,144.32,144.29,0.04872969]
[1749798442070,4.7194959,144.32,144.29,0.04872969]
[1749798442265,6.9256,144.31,144.29,0.04872969]
[1749798442772,11.6446959,144.32,144.29,0.04872969]
[1749798443273,11.6446959,144.32,144.29,6.97512969]
[1749798444170,6.9258,144.31,144.29,0.04872969]
[1749798446870,6.926,144.3,144.29,0.04872969]
[1749798447170,2.4378959,144.32,144.29,0.04872969]
[1749798447479,6.9258,144.31,144.29,0.04872969]
[1749798447773,9.3629959,144.32,144.29,0.04872969]
[1749798447973,9.3629959,144.32,144.29,6.97502969]
[1749798448169,9.3629959,144.32,144.29,0.04872969]
[1749798448770,0.0515959,144.32,144.29,0.04872969]
[1749798449069,6.43878163,144.38,144.33,6.9244]
[1749798449277,5.86653809,144.37,144.33,11.96456761]
[1749798449481,12.78993809,144.36,144.33,11.96456761]
[1749798449680,6.9234,144.36,144.33,11.96456761]
[1749798450075,6.97101774,144.36,144.33,12.01376237]
[1749798450467,0.04761774,144.36,144.33,12.01376237]
[1749798451073,6.97101774,144.36,144.33,12.01376237]
[1749798451481,0.04761774,144.36,144.33,0.04919476]
[1749798451780,6.9239,144.35,144.33,0.04919476]
[1749798452278,6.97101774,144.36,144.33,6.97369476]
[1749798452674,0.04761774,144.36,144.33,0.04919476]
[1749798452875,0.04761774,144.36,144.34,6.924]
[1749798453076,0.04761774,144.36,144.33,5.08936237]
[1749798453478,0.04761774,144.36,144.35,6.9236]
[1749798455979,0.04761774,144.36,144.35,11.96376761]
[1749798456881,0.04761774,144.36,144.35,53.10376761]
[1749798457778,6.9205,144.42,144.35,46.18016761]
[1749798457980,4.7559,144.45,144.38,5.04016761]
[1749798458180,5.86554633,144.44,144.38,11.96196761]
[1749798458679,0.04555933,144.42,144.4,0.05197812]
[1749798459072,6.9211,144.41,144.4,0.05197812]
[1749798463787,0.04555933,144.42,144.4,5.09214573]
[1749798464176,41.14,144.49,144.4,5.09214573]
[1749798464377,41.14,144.49,144.44,5.04016761]
[1749798464778,6.9176,144.48,144.45,6.9188]
[1749798465077,6.96227588,144.48,144.45,6.96534436]
[1749798465283,0.04467588,144.48,144.45,6.96534436]
[1749798465485,0.04467588,144.48,144.46,5.04016761]
[1749798465988,0.04467588,144.48,144.45,0.04654436]
[1749798466195,0.04467588,144.48,144.46,5.04016761]
[1749798466581,0.04467588,144.48,144.47,6.9179]
[1749798466887,41.12,144.55,144.47,41.12]
[1749798467190,6.9152,144.53,144.5,5.04016761]
[1749798467695,6.96282772,144.53,144.5,5.09238379]
[1749798467890,0.04762772,144.53,144.5,5.09238379]
[1749798468092,0.04762772,144.53,144.52,5.04016761]
[1749798468294,0.04762772,144.53,144.51,5.04016761]
[1749798468492,6.96282772,144.53,144.51,5.04016761]
[1749798468696,0.04762772,144.53,144.51,5.04016761]
[1749798469398,0.04762772,144.53,144.51,11.95606761]
[1749798470200,0.04762772,144.53,144.51,5.04016761]
[1749798470794,0.04762772,144.53,144.5,0.05221618]
[1749798471395,6.9157,144.52,144.5,0.05221618]
[1749798471692,0.04762772,144.53,144.5,0.05221618]
[1749798471887,6.9155,144.52,144.5,0.05221618]
[1749798473501,6.9159,144.51,144.5,0.05221618]
[1749798473899,6.9157,144.52,144.5,0.05221618]
[1749798474400,0.04762772,144.53,144.5,0.05221618]
[1749798474607,6.9155,144.52,144.5,0.05221618]
[1749798475201,6.9159,144.51,144.5,0.05221618]
[1749798476105,6.9157,144.52,144.5,0.05221618]
[1749798476295,6.9157,144.52,144.29,6.934]
[1749798476296,5.02678037,144.52,144.36,412.6457]
[1749798476496,6.9172,144.49,144.45,6.9185]
[1749798476696,46.12747826,144.54,144.46,5.02747826]
[1749798477105,6.9162,144.51,144.47,6.9176]
[1749798477297,41.1,144.54,144.48,5.07117291]
[1749798477503,0.04679879,144.5,144.48,5.07117291]
[1749798478207,0.04679879,144.5,144.49,6.9169]
[1749798479504,6.9156,144.57,144.52,6.9154]
[1749798479701,6.9156,144.57,144.52,5.02747826]
[1749798479907,41.1,144.6,144.52,5.02747826]
[1749798480109,41.1,144.6,144.55,6.9138]
[1749798480110,6.9123,144.59,144.55,6.9138]
[1749798480508,0.05011466,144.58,144.56,0.0473856]
[1749798480909,0.05011466,144.58,144.56,6.9608856]
[1749798481112,0.05011466,144.58,144.56,0.0473856]
[1749798481608,6.9131,144.57,144.56,0.0473856]
[1749798482203,6.96291466,144.58,144.56,0.0473856]
[1749798482900,6.9131,144.57,144.56,0.0473856]
[1749798483102,0.05011466,144.58,144.56,0.0473856]
[1749798483311,6.9131,144.57,144.56,0.0473856]
[1749798483499,0.05011466,144.58,144.56,0.0473856]
[1749798484806,6.96301466,144.58,144.56,0.0473856]
[1749798485411,0.05011466,144.58,144.56,6.9607856]
[1749798485704,0.05011466,144.58,144.56,5.07486386]
[1749798485901,0.05011466,144.58,144.56,41.0073856]
[1749798486497,2.2985,144.65,144.57,5.02747826]
[1749798486709,2.2985,144.65,144.63,5.02747826]
[1749798486904,9.1954,144.66,144.63,5.02747826]
[1749798486905,2.2863,144.66,144.63,5.02747826]
[1749798487300,2.2985,144.69,144.65,5.02747826]
[1749798487607,0.04555429,144.68,144.67,5.02747826]
[1749798488004,0.04555429,144.68,144.66,0.0443917]
[1749798488207,0.04555429,144.68,144.67,5.02747826]
[1749798489403,0.04555429,144.68,144.67,6.9083]
[1749798489603,0.04555429,144.68,144.66,8.63584471]
[1749798489803,0.04555429,144.68,144.66,15.54434471]
[1749798490102,0.04555429,144.68,144.66,8.63584471]
[1749798491203,0.04555429,144.68,144.66,0.0443917]
[1749798491401,6.95375429,144.68,144.66,0.0443917]
[1749798491607,0.04555429,144.68,144.66,0.0443917]
[1749798492602,0.04555429,144.68,144.67,6.9083]
[1749798493006,2.3123,144.73,144.66,8.63584471]
[1749798493311,2.3123,144.73,144.69,15.49875301]
[1749798493701,9.2181,144.73,144.7,6.9069]
[1749798493902,9.2181,144.73,144.69,8.59145301]
[1749798494099,0.04537275,144.72,144.7,0.04562423]
[1749798495103,6.95137275,144.72,144.7,0.04562423]
[1749798495305,0.04537275,144.72,144.7,0.04562423]
[1749798495606,6.9064,144.71,144.7,0.04562423]
[1749798498814,6.95147275,144.72,144.7,0.04562423]
[1749798499017,0.04537275,144.72,144.7,0.04562423]
[1749798500016,6.9064,144.71,144.7,0.04562423]
[1749798500913,6.95147275,144.72,144.7,0.04562423]
[1749798501105,0.04537275,144.72,144.7,0.04562423]
[1749798501514,0.04537275,144.72,144.7,6.95242423]
[1749798502512,0.04537275,144.72,144.71,6.9064]
[1749798502914,0.04537275,144.72,144.7,0.04562423]
[1749798504123,0.04537275,144.72,144.71,6.9064]
[1749798504620,0.04537275,144.72,144.7,6.95232423]
[1749798506320,0.04537275,144.72,144.71,6.9065]
[1749798506620,0.04537275,144.72,144.71,47.8265]
[1749798508232,0.04537275,144.72,144.71,40.92]
[1749798509723,0.04537275,144.72,144.71,47.8265]
[1749798511221,0.04537275,144.72,144.71,52.83429508]
[1749798512523,2.381,144.77,144.75,6.9046]
[1749798512728,2.2446,144.79,144.75,11.91239508]
[1749798512933,12.8524718,144.78,144.75,5.00779508]
[1749798513122,5.9489718,144.77,144.75,5.00779508]
[1749798513325,6.9035,144.78,144.75,5.00779508]
[1749798513533,6.9039,144.77,144.75,0.04404671]
[1749798514125,6.9041,144.76,144.75,0.04404671]
[1749798514619,0.04627995,144.78,144.75,0.04404671]
[1749798514620,6.9038,144.77,144.75,0.04404671]
[1749798514826,0.04627995,144.78,144.75,0.04404671]
[1749798515023,0.04627995,144.78,144.75,6.94844671]
[1749798515225,6.94967995,144.78,144.75,6.94844671]
[1749798515532,0.04627995,144.78,144.77,11.91139508]
[1749798516731,0.04627995,144.78,144.77,5.00779508]
[1749798517130,0.04627995,144.78,144.76,40.76]
[1749798517328,0.04627995,144.78,144.75,0.04404671]
[1749798517731,0.04627995,144.78,144.77,6.9037]
[1749798519036,0.04627995,144.78,144.75,0.04404671]
[1749798520028,14.56729439,144.77,144.7,40.76]
[1749798520235,5.98321889,144.76,144.7,40.76]
[1749798520428,5.98822458,144.75,144.7,40.76]
[1749798520735,5.98822458,144.74,144.7,40.76]
[1749798520932,5.9888294,144.73,144.67,49.3440755]
[1749798521129,6.03472647,144.72,144.69,0.04972049]
[1749798521326,0.04544466,144.72,144.69,0.04972049]
[1749798522133,0.04544466,144.72,144.69,6.95702049]
[1749798522833,0.04544466,144.72,144.7,6.9071]
[1749798523540,0.04544466,144.72,144.69,0.04972049]
[1749798524234,0.04544466,144.72,144.7,6.9072]
[1749798525037,0.04544466,144.72,144.71,6.9067]
[1749798525238,8.81087616,144.72,144.71,6.9067]
[1749798525425,0.04544466,144.72,144.71,6.9067]
[1749798525829,0.04544466,144.72,144.7,6.9069]
[1749798526034,0.04544466,144.72,144.69,0.04972049]
[1749798526437,0.04544466,144.72,144.7,6.907]
[1749798526639,0.04544466,144.72,144.69,0.04972049]
[1749798526937,0.04544466,144.72,144.7,6.907]
[1749798527135,0.04544466,144.72,144.69,0.04972049]
[1749798527533,0.04544466,144.72,144.71,6.9066]
[1749798527838,0.04544466,144.72,144.69,0.04972049]
[1749798528637,0.04544466,144.72,144.7,6.9066]
[1749798529634,0.04544466,144.72,144.71,6.9066]
[1749798529828,0.04544466,144.72,144.69,0.04972049]
[1749798529829,6.05242997,144.72,144.69,0.04972049]
[1749798530134,0.04544466,144.72,144.71,6.9066]
[1749798530439,6.05243198,144.72,144.71,6.9066]
[1749798531736,6.05243198,144.72,144.7,6.9068]
[1749798531939,6.00698732,144.71,144.7,6.9068]
[1749798534541,6.00698732,144.71,144.69,0.04972049]
[1749798534735,8.77874501,144.7,144.69,0.04972049]
[1749798535247,6.00698732,144.7,144.69,0.04972049]
[1749798535541,8.7787544,144.7,144.69,0.04972049]
[1749798535944,8.77876019,144.7,144.69,0.04972049]
[1749798536145,6.00698732,144.7,144.69,0.04972049]
[1749798536338,8.77910455,144.7,144.69,0.04972049]
[1749798536736,8.77909875,144.7,144.69,0.04972049]
[1749798536936,6.00698732,144.7,144.69,0.04972049]
[1749798537145,8.77909875,144.7,144.69,0.04972049]
[1749798537745,6.00698732,144.7,144.69,0.04972049]
[1749798537945,8.77312467,144.7,144.69,0.04972049]
[1749798538151,8.77314173,144.7,144.69,0.04972049]
[1749798538540,6.00698732,144.7,144.69,6.95742049]
[1749798538741,8.77314173,144.7,144.69,6.95742049]
[1749798538942,8.773145,144.7,144.69,6.95742049]
[1749798539242,0.04544466,144.72,144.7,6.9068]
[1749798539549,8.80379143,144.71,144.7,6.9068]
[1749798539748,6.0377449,144.71,144.69,0.04972049]
[1749798540046,6.03790669,144.7,144.69,0.04972049]
[1749798540346,6.03790669,144.7,144.69,6.95742049]
[1749798540543,11.04914597,144.7,144.61,40.62]
[1749798540741,11.04914597,144.7,144.58,40.62]
[1749798540742,5.01123928,144.66,144.58,40.62]
[1749798540946,5.01123928,144.66,144.61,6.9112]
[1749798540947,6.0241081,144.65,144.61,6.9112]
[1749798541143,6.02473464,144.64,144.58,40.62]
[1749798541345,45.63123928,144.64,144.57,5.01123928]
[1749798541550,0.05265223,144.62,144.59,0.0491984]
[1749798542435,6.9115,144.61,144.59,0.0491984]
[1749798542636,0.05265223,144.62,144.59,6.9615984]
[1749798542841,6.96385223,144.62,144.59,6.9615984]
[1749798543043,5.01123928,144.6,144.59,0.0491984]
[1749798543244,6.01944099,144.6,144.52,40.64]
[1749798543438,6.9121,144.6,144.52,40.64]
[1749798543841,40.64,144.6,144.52,40.64]
[1749798544037,40.64,144.6,144.53,8.60837049]
[1749798544249,0.05017478,144.58,144.56,6.9138]
[1749798544837,0.05017478,144.58,144.55,0.04857648]
[1749798545037,6.96307478,144.58,144.55,0.04857648]
[1749798545545,0.05017478,144.58,144.56,6.9136]
[1749798546244,0.05017478,144.58,144.55,0.04857648]
[1749798546750,0.05017478,144.58,144.56,6.9135]
[1749798547550,6.96307478,144.58,144.56,6.9135]
[1749798547945,0.05017478,144.58,144.56,6.9135]
[1749798548145,0.05017478,144.58,144.57,6.9133]
[1749798548544,0.05017478,144.58,144.56,6.9136]
[1749798548939,0.05017478,144.58,144.55,0.04857648]
[1749798549144,0.05017478,144.58,144.56,6.9138]
[1749798550852,6.96327478,144.58,144.55,0.04857648]
[1749798551048,0.05017478,144.58,144.55,0.04857648]
[1749798551249,0.05017478,144.58,144.56,6.9134]
[1749798551650,6.9138,144.56,144.55,0.04857648]
[1749798551852,8.60837049,144.57,144.49,40.64]
[1749798552053,45.0932,144.56,144.49,40.64]
[1749798552351,45.0932,144.56,144.47,8.60837049]
[1749798552556,6.44281814,144.65,144.55,8.60837049]
[1749798552746,12.87681278,144.69,144.61,8.60837049]
[1749798552747,6.8523,144.69,144.61,8.60837049]
[1749798552946,0.04516653,144.66,144.64,0.04837584]
[1749798553453,6.9098,144.65,144.64,0.04837584]
[1749798553642,0.04516653,144.66,144.64,0.04837584]
[1749798554045,15.57353702,144.66,144.54,8.60837049]
[1749798554241,8.60837049,144.61,144.53,438.78]
[1749798554449,4.7142,144.6,144.53,438.78]
[1749798555163,0.04912984,144.58,144.55,0.0524655]
[1749798555963,0.04912984,144.58,144.57,6.913]
[1749798556366,0.04912984,144.58,144.56,6.9135]
[1749798556563,0.04912984,144.58,144.55,0.0524655]
[1749798557568,0.04912984,144.58,144.56,6.9138]
[1749798557768,0.04912984,144.58,144.55,0.0524655]
[1749798558162,6.96212984,144.58,144.55,0.0524655]
[1749798558459,0.04912984,144.58,144.55,0.0524655]
[1749798558858,0.04912984,144.58,144.57,6.9134]
[1749798561165,0.04912984,144.58,144.56,6.9135]
[1749798562670,0.04912984,144.58,144.55,0.0524655]
[1749798563365,6.96222984,144.58,144.55,6.9663655]
[1749798563874,8.65750033,144.58,144.55,0.0524655]
[1749798564070,49.31750033,144.58,144.5,40.66]
[1749798564372,6.9135,144.57,144.54,6.9145]
[1749798564774,49.26837049,144.58,144.5,40.66]
[1749798564974,8.60837049,144.56,144.47,40.66]
[1749798565172,0.05321016,144.53,144.5,0.05126323]
[1749798566671,0.05321016,144.53,144.52,6.9157]
[1749798566881,0.05321016,144.53,144.5,0.05126323]
[1749798568079,6.96871016,144.53,144.5,6.96766323]
[1749798569573,6.9161,144.52,144.5,0.05126323]
[1749798570168,2.34031016,144.53,144.5,0.05126323]
[1749798570169,6.9162,144.51,144.5,0.05126323]
[1749798575382,4.60861016,144.53,144.5,0.05126323]
[1749798575576,2.34031016,144.53,144.5,0.05126323]
[1749798575976,0.05321016,144.53,144.5,6.96766323]
[1749798576286,0.05321016,144.53,144.5,0.05126323]
[1749798577271,6.96871016,144.53,144.5,6.96766323]
[1749798577787,0.05321016,144.53,144.5,6.96766323]
[1749798578584,6.96871016,144.53,144.5,6.96766323]
[1749798578878,0.05321016,144.53,144.5,0.05126323]
[1749798579276,6.916,144.52,144.5,0.05126323]
[1749798580079,6.9162,144.51,144.5,0.05126323]
[1749798580477,0.05321016,144.53,144.5,0.05126323]
[1749798580679,0.05321016,144.53,144.5,6.96786323]
[1749798580880,0.05321016,144.53,144.5,0.05126323]
[1749798581183,0.05321016,144.53,144.51,6.9159]
[1749798581488,0.05321016,144.53,144.5,5.07810054]
[1749798581683,2.2603,144.58,144.52,5.02683731]
[1749798581888,5.9214158,144.57,144.54,5.02683731]
[1749798582087,56.30217916,144.61,144.52,45.54683731]
[1749798582088,5.92116307,144.56,144.52,45.54683731]
[1749798582283,5.02182445,144.57,144.49,9.48282445]
[1749798582484,5.02182445,144.55,144.48,40.52]
[1749798582688,5.07082496,144.53,144.5,0.04753937]
[1749798583393,0.04900051,144.53,144.5,0.04753937]
[1749798583585,5.9465549,144.52,144.5,0.04753937]
[1749798583784,6.96430051,144.53,144.5,6.96403937]
[1749798583984,5.94670825,144.52,144.5,6.96403937]
[1749798584185,6.96430051,144.53,144.5,6.96403937]
[1749798584487,5.95673863,144.52,144.5,6.96403937]
[1749798584792,5.95673863,144.51,144.5,6.96403937]
[1749798587895,0.04900051,144.53,144.51,6.9161]
[1749798588085,5.95049727,144.52,144.51,6.9161]
[1749798589284,0.04900051,144.53,144.52,6.9157]
[1749798589597,6.00000532,144.53,144.52,6.9157]
[1749798592592,0.04900051,144.53,144.52,6.9157]
[1749798592791,6.00092127,144.53,144.51,6.916]
[1749798592986,5.95222699,144.52,144.5,0.04753937]
[1749798593294,5.95222699,144.52,144.48,6.9177]
[1749798593295,17.89065144,144.51,144.48,6.9177]
[1749798593496,5.95222699,144.5,144.48,6.9177]
[1749798593698,51.98464259,144.53,144.48,6.9177]
[1749798593989,6.9166,144.51,144.48,6.9177]
[1749798594197,5.95657913,144.5,144.49,0.05205513]
[1749798594394,12.87327913,144.5,144.49,0.05205513]
[1749798596894,5.95657913,144.5,144.49,0.05205513]
[1749798597099,0.0443274,144.52,144.49,0.05205513]
[1749798597299,0.0443274,144.52,144.5,6.9163]
[1749798597903,0.0443274,144.52,144.51,6.9162]
[1749798601400,0.0443274,144.52,144.5,6.9166]
[1749798601797,0.0443274,144.52,144.51,6.9162]
[1749798602001,0.0443274,144.52,144.51,11.94021764]
[1749798602897,0.0443274,144.52,144.51,6.9162]
[1749798603598,0.0443274,144.52,144.5,6.9166]
[1749798603799,0.0443274,144.52,144.49,0.05205513]
[1749798604504,0.0443274,144.52,144.5,5.02401764]
[1749798604695,0.0443274,144.52,144.51,5.02253415]
[1749798604895,6.44281814,144.58,144.51,45.36253415]
[1749798605099,40.34,144.59,144.51,45.36253415]
[1749798605100,5.95176578,144.57,144.54,5.02253415]
[1749798605294,5.95176578,144.56,144.54,5.02253415]
[1749798605497,6.9126,144.59,144.56,6.9136]
[1749798605696,5.95297949,144.58,144.56,6.9136]
[1749798605898,5.95297949,144.57,144.56,6.9613459]
[1749798606304,5.95297949,144.57,144.56,0.0477459]
[1749798607409,5.95297949,144.57,144.56,6.9615459]
[1749798608004,5.95463692,144.57,144.56,0.0477459]
[1749798611408,12.86793692,144.57,144.56,0.0477459]
[1749798612506,12.86793692,144.57,144.48,400.4692]
[1749798612507,6.9153,144.53,144.49,45.34212455]
[1749798612695,11.47710324,144.57,144.5,6.9164]
[1749798612899,8.71492071,144.56,144.51,5.02212455]
[1749798613105,5.96789753,144.55,144.51,5.02212455]
[1749798613310,0.04563936,144.54,144.53,6.915]
[1749798614605,0.04563936,144.54,144.52,6.9659584]
[1749798615305,0.04563936,144.54,144.53,6.9153]
[1749798617305,0.04563936,144.54,144.53,11.93630797]
[1749798618507,0.04563936,144.54,144.53,6.9153]
[1749798621210,0.04563936,144.54,144.52,11.98686637]
[1749798621711,0.04563936,144.54,144.52,5.07136637]
[1749798621909,0.04563936,144.54,144.52,0.0503584]
[1749798622412,6.96073936,144.54,144.52,0.0503584]
[1749798623716,6.96073936,144.54,144.52,6.9660584]
[1749798624214,0.04563936,144.54,144.52,6.9660584]
[1749798624913,0.04563936,144.54,144.52,0.0503584]
[1749798625113,5.96884367,144.53,144.52,0.0503584]
[1749798625313,0.04563936,144.54,144.52,0.0503584]
[1749798625615,0.04563936,144.54,144.53,6.9153]
[1749798625914,6.01492199,144.54,144.52,0.0503584]
[1749798626118,5.96928263,144.53,144.52,0.0503584]
[1749798627121,12.88458263,144.53,144.52,0.0503584]
[1749798627321,5.96928263,144.53,144.52,6.9660584]
[1749798627719,0.04563936,144.54,144.52,0.0503584]
[1749798628119,0.04563936,144.54,144.53,6.9153]
[1749798628319,6.02230437,144.54,144.53,6.9153]
[1749798628518,0.04563936,144.54,144.53,6.9153]
[1749798629522,0.04563936,144.54,144.53,47.2353]
[1749798631027,0.04563936,144.54,144.53,52.25590993]
[1749798633624,6.913,144.58,144.53,45.34060993]
[1749798634122,6.913,144.58,144.55,6.9142]
[1749798634324,5.96886032,144.57,144.55,6.9142]
[1749798634517,6.913,144.58,144.55,6.9142]
[1749798634726,0.04623243,144.57,144.55,6.9585075]
[1749798634916,6.95973243,144.57,144.55,0.0443075]
[1749798635317,0.04623243,144.57,144.55,0.0443075]
[1749798635918,6.9139,144.56,144.55,0.0443075]
[1749798637427,6.95993243,144.57,144.55,0.0443075]
[1749798637623,0.04623243,144.57,144.55,0.0443075]
[1749798638125,6.9139,144.56,144.55,0.0443075]
[1749798638319,5.97003514,144.56,144.55,0.0443075]
[1749798638526,0.04623243,144.57,144.55,0.0443075]
[1749798638721,6.9139,144.56,144.55,0.0443075]
[1749798638917,12.88393616,144.56,144.55,0.0443075]
[1749798639121,6.9139,144.56,144.55,0.0443075]
[1749798639322,5.97195579,144.56,144.55,0.0443075]
[1749798640229,5.97817672,144.56,144.55,0.0443075]
[1749798642129,12.89207672,144.56,144.55,0.0443075]
[1749798642432,5.97817672,144.56,144.55,0.0443075]
[1749798644221,0.04623243,144.57,144.55,5.06274358]
[1749798644435,6.45497869,144.62,144.55,10.08117966]
[1749798644728,5.98259983,144.61,144.59,5.01843608]
[1749798644931,5.98259983,144.6,144.59,52.07093608]
[1749798645134,6.9108,144.63,144.59,45.15843608]
[1749798645327,6.02517505,144.62,144.6,0.0445996]
[1749798645634,5.97932992,144.61,144.6,6.9563996]
[1749798645928,10.997766,144.61,144.56,40.14]
[1749798646134,12.43430861,144.6,144.53,40.14]
[1749798646334,6.9134,144.58,144.53,40.14]
[1749798646533,8.82967869,144.61,144.57,6.9134]
[1749798646734,5.9801782,144.6,144.56,5.01843608]
[1749798647039,12.94213001,144.59,144.57,0.0457796]
[1749798647337,5.9801782,144.58,144.57,0.0457796]
[1749798648041,0.04945181,144.59,144.57,0.0457796]
[1749798648233,5.98001618,144.58,144.57,0.0457796]
[1749798648543,5.98001618,144.58,144.57,6.9591796]
[1749798648728,0.04945181,144.59,144.57,0.0457796]
[1749798649434,0.04945181,144.59,144.57,6.9589796]
[1749798650035,6.96195181,144.59,144.57,0.0457796]
[1749798650237,5.98717703,144.58,144.57,0.0457796]
[1749798650535,6.9129,144.58,144.57,0.0457796]
[1749798650933,12.90004216,144.58,144.57,0.0457796]
[1749798651642,12.90004216,144.58,144.53,40.14]
[1749798651643,5.98714216,144.58,144.53,40.14]
[1749798651938,5.98714216,144.57,144.53,40.14]
[1749798652140,5.98714216,144.56,144.53,40.14]
[1749798652329,5.98796599,144.55,144.52,5.01843608]
[1749798652532,6.45497869,144.58,144.52,5.01843608]
[1749798652731,0.04973391,144.55,144.52,5.07142557]
[1749798652929,6.9151,144.54,144.52,11.98712557]
[1749798653545,6.9153,144.53,144.52,0.05298949]
[1749798653737,5.98488199,144.53,144.52,0.05298949]
[1749798653936,0.04973391,144.55,144.52,0.05298949]
[1749798654136,6.9151,144.54,144.52,0.05298949]
[1749798654543,6.9151,144.54,144.52,6.96878949]
[1749798654741,6.9153,144.53,144.52,0.05298949]
[1749798654946,12.89950687,144.53,144.52,0.05298949]
[1749798655246,5.98420687,144.53,144.52,0.05298949]
[1749798656240,12.89950687,144.53,144.52,0.05298949]
[1749798656436,0.04973391,144.55,144.52,0.05298949]
[1749798656932,6.9151,144.54,144.52,0.05298949]
[1749798659047,6.9151,144.54,144.52,6.96878949]
[1749798659344,0.04973391,144.55,144.53,5.02325976]
[1749798659645,0.04973391,144.55,144.52,0.05298949]
[1749798660237,6.96433391,144.55,144.52,6.96848949]
[1749798660447,0.04973391,144.55,144.52,0.05298949]
[1749798660649,5.95562692,144.54,144.52,0.05298949]
[1749798660851,5.95562692,144.53,144.47,45.16499254]
[1749798661037,5.02499254,144.53,144.47,5.02499254]
[1749798661239,8.28948441,144.52,144.47,5.02499254]
[1749798661539,8.28948441,144.52,144.46,40.14]
[1749798661540,5.95675263,144.51,144.46,40.14]
[1749798661740,6.00851998,144.5,144.47,0.04701459]
[1749798661940,0.05176735,144.5,144.47,0.04701459]
[1749798662343,6.96886735,144.5,144.47,6.96491459]
[1749798662546,5.95280752,144.49,144.47,6.96491459]
[1749798662854,6.96886735,144.5,144.47,6.96501459]
[1749798663846,0.05176735,144.5,144.48,6.9176]
[1749798664646,0.05176735,144.5,144.49,6.9172]
[1749798665244,6.96876735,144.5,144.48,6.9175]
[1749798665647,0.05176735,144.5,144.47,5.07200713]
[1749798666051,0.05176735,144.5,144.48,6.9177]
[1749798666252,0.05176735,144.5,144.47,5.07200713]
[1749798666657,6.96856735,144.5,144.48,6.9177]
[1749798667055,0.05176735,144.5,144.47,0.04701459]
[1749798669364,6.96856735,144.5,144.48,6.9177]
[1749798669661,0.05176735,144.5,144.48,6.9177]
[1749798669857,0.05176735,144.5,144.49,6.9172]
[1749798672867,6.96856735,144.5,144.48,6.9175]
[1749798673074,0.05176735,144.5,144.48,6.9175]
[1749798674276,0.05176735,144.5,144.49,6.9172]
[1749798674869,0.05176735,144.5,144.48,6.9175]
[1749798675179,6.96856735,144.5,144.48,6.9175]
[1749798675377,0.05176735,144.5,144.47,0.04701459]
[1749798676775,6.9177,144.48,144.47,0.04701459]
[1749798676981,0.05176735,144.5,144.47,0.04701459]
[1749798677479,6.9175,144.49,144.47,0.04701459]
[1749798678179,6.9175,144.49,144.47,6.96511459]
[1749798678382,6.9175,144.49,144.47,0.04701459]
[1749798679473,0.05176735,144.5,144.47,5.07433546]
[1749798679674,0.05176735,144.5,144.49,5.02732087]
[1749798680076,2.3211,144.53,144.49,5.02732087]
[1749798681087,0.04456192,144.52,144.49,5.02732087]
[1749798681290,0.04456192,144.52,144.47,45.03433546]
[1749798681583,0.04456192,144.52,144.47,40.00701459]
[1749798681790,5.95066421,144.52,144.47,40.00701459]
[1749798681980,6.9165,144.51,144.47,46.92471459]
[1749798682680,6.9169,144.5,144.47,46.92471459]
[1749798683290,6.9169,144.5,144.48,6.9177]
[1749798683493,6.9169,144.5,144.47,40.00701459]
[1749798683882,6.9169,144.5,144.47,46.92481459]
[1749798684190,0.04456192,144.52,144.47,45.03433546]
[1749798684492,0.04456192,144.52,144.51,5.02732087]
[1749798684889,39.96,144.59,144.51,44.98732087]
[1749798685088,10.94338722,144.58,144.51,39.96]
[1749798685293,5.91606635,144.57,144.54,6.9146]
[1749798685493,39.96,144.59,144.52,5.02732087]
[1749798685693,5.91648851,144.58,144.52,5.02732087]
[1749798685996,0.05179132,144.56,144.54,0.05227075]
[1749798686693,6.96589132,144.56,144.54,6.96707075]
[1749798687892,6.96589132,144.56,144.54,0.05227075]
[1749798688087,6.9143,144.55,144.54,0.05227075]
[1749798688394,0.05179132,144.56,144.54,6.96677075]
[1749798688593,0.05179132,144.56,144.54,0.05227075]
[1749798689188,6.96599132,144.56,144.54,0.05227075]
[1749798690091,6.96599132,144.56,144.54,6.96707075]
[1749798690385,0.05179132,144.56,144.54,6.96707075]
[1749798690590,0.05179132,144.56,144.55,6.9144]
[1749798690988,0.05179132,144.56,144.54,0.05227075]
[1749798691190,0.05179132,144.56,144.54,6.96687075]
[1749798692597,6.96589132,144.56,144.54,6.96687075]
[1749798694099,6.96589132,144.56,144.54,0.05227075]
[1749798694805,0.05179132,144.56,144.54,0.05227075]